bitfinex-derivatives/quotes_SOLF0:USTF0_20250829
["timestamp","ask_amount","ask_price","bid_price","bid_amount"]
[1756474404410,145.44,210.87,210.74,7.79]
[1756474404698,0.23,210.86,210.66,7.79]
[1756474404908,0.23,210.85,210.78,0.02992218]
[1756474405695,318.62,210.9,210.78,0.02992218]
[1756474405896,145.58,210.89,210.78,0.02992218]
[1756474406105,318.62,210.9,210.78,0.02992218]
[1756474406302,464.2,210.9,210.78,0.02992218]
[1756474406808,318.62,210.9,210.79,7.79]
[1756474407203,4.2673,210.87,210.79,7.79]
[1756474407705,66.3777,210.88,210.66,157.86876447]
[1756474407898,66.3868,210.85,210.73,7.79]
[1756474408097,66.3834,210.86,210.73,7.79]
[1756474408098,66.3898,210.84,210.73,7.79]
[1756474408404,4.2687,210.8,210.77,0.03087944]
[1756474408603,0.23,210.79,210.77,7.944e-05]
[1756474409103,66.4026,210.8,210.77,7.944e-05]
[1756474409310,4.2691,210.78,210.77,7.944e-05]
[1756474410297,4.4991,210.78,210.77,7.944e-05]
[1756474410702,4.2705,210.71,210.62,62.0]
[1756474411403,66.4184,210.75,210.62,62.0]
[1756474412104,0.03143767,210.71,210.53,7.79]
[1756474412413,0.23,210.69,210.53,7.79]
[1756474412711,144.5,210.69,210.53,7.79]
[1756474412901,318.76,210.74,210.58,66.4704]
[1756474413105,318.76,210.74,210.59,7.82317268]
[1756474413106,144.38,210.73,210.59,7.82317268]
[1756474413305,144.38,210.73,210.59,7.79]
[1756474414103,318.76,210.74,210.59,7.79]
[1756474414304,144.24,210.73,210.64,0.03164861]
[1756474414503,318.76,210.74,210.64,7.82164861]
[1756474415004,144.14,210.73,210.64,7.82164861]
[1756474415198,318.8,210.87,210.66,7.79]
[1756474415404,144.31,210.86,210.66,7.79]
[1756474415598,0.8258187,210.83,210.7,4.2707]
[1756474415808,144.04,210.82,210.66,7.79]
[1756474416107,144.04,210.82,210.66,12.0613]
[1756474416301,144.04,210.82,210.72,0.03319063]
[1756474416501,0.25,210.81,210.72,0.03319063]
[1756474417299,0.25,210.76,210.61,7.16]
[1756474417504,143.74,210.75,210.61,7.16]
[1756474417809,66.6664,210.76,210.61,7.16]
[1756474418111,143.62,210.75,210.61,7.16]
[1756474418606,0.03604263,210.7,210.61,7.16]
[1756474419103,0.03604263,210.7,210.62,66.4584]
[1756474419307,0.03604263,210.7,210.62,66.459]
[1756474419502,0.03604263,210.7,210.63,7.16]
[1756474419808,0.03604263,210.7,210.64,4.2719]
[1756474420008,18.45323983,210.86,210.66,7.16]
[1756474420204,393.7152,210.87,210.7,7.16]
[1756474420205,318.8,210.87,210.7,7.16]
[1756474420407,318.8,210.87,210.74,7.16]
[1756474420908,318.8,210.87,210.78,4.269]
[1756474421309,318.8,210.87,210.8,0.03514266]
[1756474421706,1.0,210.9,210.81,7.16]
[1756474422011,1.0,210.9,210.88,7.16]
[1756474422208,1.0,210.9,210.86,7.16]
[1756474422407,1.0,210.9,210.87,4.2672]
[1756474422811,1.0,210.9,210.88,7.16]
[1756474423014,143.1,210.99,210.89,11.4268]
[1756474423714,143.1,210.99,210.92,0.03265123]
[1756474423915,1.29,210.98,210.92,0.03265123]
[1756474424207,66.3558,210.95,210.92,5.123e-05]
[1756474424414,4.2668,210.9,210.77,62.0]
[1756474425008,4.2671,210.88,210.77,62.0]
[1756474425203,66.3759,210.89,210.77,62.0]
[1756474425409,66.3841,210.86,210.72,4.2701]
[1756474425615,142.47253149,210.85,210.72,4.2701]
[1756474425915,142.47253149,210.85,210.7,7.16]
[1756474425916,4.2683,210.82,210.7,7.16]
[1756474426113,142.44,210.85,210.73,7.16]
[1756474426415,0.03357263,210.78,210.73,7.16]
[1756474426611,142.44,210.85,210.77,0.03314209]
[1756474427111,66.3932,210.83,210.77,0.03314209]
[1756474427417,66.4,210.81,210.77,0.03314209]
[1756474427712,1.32,210.81,210.77,0.03314209]
[1756474428307,66.3958,210.82,210.77,0.03314209]
[1756474428706,18.45323983,210.8,210.63,7.16]
[1756474429413,18.45323983,210.8,210.64,66.4518]
[1756474429618,142.06,210.81,210.67,66.4427]
[1756474430013,0.03136675,210.74,210.67,66.4427]
[1756474430311,0.03136675,210.74,210.68,4.2709]
[1756474430507,0.03136675,210.74,210.62,3.92526447]
[1756474430716,0.03136675,210.74,210.63,7.16]
[1756474431014,1.29,210.76,210.59,7.16]
[1756474431209,0.03482223,210.71,210.59,73.6274]
[1756474431515,0.03482223,210.71,210.66,66.4459]
[1756474431710,75.92,210.8,210.68,66.4395]
[1756474431915,75.92,210.8,210.72,7.16]
[1756474432710,75.92,210.8,210.72,11.4302]
[1756474432910,75.92,210.8,210.74,0.03323384]
[1756474433315,318.78,210.85,210.74,0.03323384]
[1756474433517,460.5,210.85,210.74,0.03323384]
[1756474433917,1.32,210.84,210.74,0.03323384]
[1756474434617,141.52,210.83,210.74,0.03323384]
[1756474435421,141.4,210.82,210.74,0.03323384]
[1756474436120,145.6683,210.82,210.74,0.03323384]
[1756474436618,4.2683,210.82,210.74,0.03323384]
[1756474436817,145.6083,210.82,210.74,0.03323384]
[1756474437618,18.45323983,210.89,210.74,0.03323384]
[1756474437819,141.12,210.88,210.74,7.19323384]
[1756474438119,1.32,210.86,210.74,7.16]
[1756474438319,1.32,210.86,210.79,0.03350319]
[1756474438922,140.9,210.9,210.79,0.03350319]
[1756474439310,140.9,210.9,210.74,11.08526447]
[1756474439816,1.32,210.86,210.82,0.03224681]
[1756474440009,66.3768,210.88,210.82,0.03224681]
[1756474440214,5.5877,210.85,210.82,0.03224681]
[1756474440517,140.9,210.86,210.82,0.03224681]
[1756474440713,1.32,210.86,210.82,0.03224681]
[1756474440916,1.32,210.92,210.82,0.03224681]
[1756474441119,0.82516272,210.99,210.84,73.5489]
[1756474441323,0.82516272,210.99,210.84,7.16]
[1756474441512,140.68,211.0,210.87,66.3796]
[1756474441717,5.5842,211.02,210.89,7.16]
[1756474441925,1.32,211.02,210.89,7.19123543]
[1756474442222,140.64,211.04,210.89,7.16]
[1756474442616,1.32,211.15,210.97,73.5078]
[1756474442818,66.2695,211.23,211.03,66.3283]
[1756474442819,4.2607,211.2,211.03,66.3283]
[1756474443016,4.2607,211.2,211.05,66.3227]
[1756474443219,4.2607,211.2,211.04,7.16]
[1756474443416,4.261,211.18,211.09,0.0308463]
[1756474443722,66.2919,211.15,211.09,0.0308463]
[1756474443925,66.302,211.12,211.09,0.0308463]
[1756474444122,5.5826,211.1,211.09,0.0308463]
[1756474444318,5.5826,211.1,211.09,4.63e-05]
[1756474444518,145.8626,211.1,210.98,62.0]
[1756474444720,4.2631,211.08,210.98,62.0]
[1756474444918,67.6276,211.1,210.98,62.0]
[1756474445222,18.45323983,211.09,210.91,7.16]
[1756474445627,18.45323983,211.04,210.91,7.16]
[1756474445820,0.03367417,211.02,210.85,15.35276447]
[1756474446019,0.03367417,211.02,210.88,70.30126447]
[1756474446327,89.1,211.03,210.87,7.16]
[1756474446523,0.03239862,210.97,210.87,7.16]
[1756474447425,337.11323983,211.09,210.89,66.3732]
[1756474447626,318.66,211.09,210.91,7.41]
[1756474447927,18.45323983,211.04,210.86,147.75]
[1756474448227,1.36,211.03,210.86,69.41]
[1756474448431,140.44,211.02,210.86,69.41]
[1756474448822,140.44,211.02,210.92,0.03579]
[1756474449227,1.36,211.03,210.92,0.03579]
[1756474449534,141.76,211.03,210.92,0.03579]
[1756474449829,140.4,211.03,210.92,0.03579]
[1756474451031,140.16,211.02,210.92,0.03579]
[1756474451434,1.36,211.04,210.92,0.03579]
[1756474451625,140.04,211.03,210.92,0.03579]
[1756474452226,18.45323983,211.01,210.92,0.03579]
[1756474452524,1.36,211.0,210.92,0.03579]
[1756474452924,140.22,211.03,210.92,0.03579]
[1756474453124,1.36,211.05,210.92,0.03579]
[1756474453328,206.4466,211.04,210.92,0.03579]
[1756474453530,140.12,211.04,210.88,69.41]
[1756474453933,140.12,211.04,210.96,0.03008743]
[1756474454331,4.264,211.03,210.96,0.03008743]
[1756474455328,1.33,210.98,210.81,7.41]
[1756474455625,0.03112838,211.02,210.88,7.41]
[1756474455830,4.2635,211.06,210.95,4.2656]
[1756474456139,319.99,211.09,210.96,7.41]
[1756474456540,319.99,211.09,210.89,7.41]
[1756474456732,0.03237376,211.05,210.89,7.41]
[1756474457031,0.03237376,211.05,210.94,66.3576]
[1756474457229,319.99,211.09,210.94,73.7676]
[1756474457434,0.03291024,211.02,210.94,73.7676]
[1756474457636,1.32,211.31,211.12,66.301]
[1756474457831,1.32,211.31,211.14,66.2942]
[1756474458035,1.32,211.31,211.19,66.2786]
[1756474458232,1.32,211.31,211.18,7.41]
[1756474458432,1.32,211.31,211.19,62.0]
[1756474459038,1.32,211.31,211.2,0.03311643]
[1756474459234,1.32,211.37,211.2,0.03311643]
[1756474459434,11.6,211.35,211.2,0.03311643]
[1756474460027,1.32,211.32,211.2,0.03311643]
[1756474461233,19.77323983,211.32,211.2,0.03311643]
[1756474461645,19.28,211.3,211.2,0.03311643]
[1756474462743,1.32,211.32,211.2,0.03311643]
[1756474463144,4.2589,211.29,211.2,0.03311643]
[1756474463444,66.2425,211.31,211.2,0.03311643]
[1756474463643,67.5572,211.33,211.2,0.03311643]
[1756474463941,120.58,211.33,211.2,0.03311643]
[1756474464747,124.838,211.33,211.2,0.03311643]
[1756474464946,120.58,211.33,211.2,0.03311643]
[1756474465142,84.65803983,211.43,211.2,0.51311643]
[1756474465444,66.226,211.36,211.21,7.41]
[1756474465642,66.221,211.38,211.22,4.2601]
[1756474465845,1.32,211.39,211.22,74.159]
[1756474466050,1.32,211.39,211.22,7.41]
[1756474466246,4.2572,211.37,211.22,7.41]
[1756474466442,4.2572,211.37,211.23,62.0]
[1756474466647,4.2572,211.37,211.28,0.03608703]
[1756474466948,4.2576,211.35,211.28,0.03608703]
[1756474467358,84.65803983,211.43,211.28,0.03608703]
[1756474467359,2.32,211.46,211.29,7.41]
[1756474467558,2.32,211.46,211.29,73.6567]
[1756474467752,66.2071,211.42,211.29,7.41]
[1756474467953,4.257,211.38,211.29,7.41]
[1756474468152,2.32,211.46,211.35,0.0347034]
[1756474468555,66.1977,211.45,211.35,0.0347034]
[1756474468755,66.2011,211.44,211.35,0.0347034]
[1756474469053,4.2564,211.41,211.35,0.0347034]
[1756474469461,66.2103,211.41,211.35,0.0347034]
[1756474469655,4.2568,211.39,211.35,0.0347034]
[1756474469863,2.32,211.37,211.35,0.0347034]
[1756474470158,66.2134,211.4,211.35,0.0347034]
[1756474470159,2.32,211.39,211.35,0.0347034]
[1756474470362,6.5772,211.37,211.35,0.0347034]
[1756474470863,4.2566,211.4,211.35,0.0347034]
[1756474471055,66.204,211.43,211.35,0.0347034]
[1756474471757,66.207,211.42,211.35,0.0347034]
[1756474472355,66.2042,211.43,211.35,0.0347034]
[1756474472863,2.32,211.44,211.35,0.0347034]
[1756474473064,4.2564,211.41,211.35,0.0347034]
[1756474473757,4.2568,211.39,211.35,0.0347034]
[1756474473964,6.5768,211.39,211.35,0.0347034]
[1756474474266,66.2009,211.44,211.35,0.0347034]
[1756474474561,2.32,211.39,211.35,0.0347034]
[1756474474760,66.1977,211.45,211.35,0.0347034]
[1756474474954,140.4,211.46,211.35,0.0347034]
[1756474475358,138.08,211.46,211.36,7.41]
[1756474475551,2.32,211.52,211.36,7.41]
[1756474475960,121.91241086,211.65,211.41,66.2098]
[1756474475961,2.32,211.58,211.41,66.2098]
[1756474476162,1.0,211.56,211.44,66.2002]
[1756474476455,1.0,211.56,211.43,7.41]
[1756474476657,1.0,211.56,211.43,73.613]
[1756474476863,5.2533,211.56,211.44,62.0]
[1756474477061,5.2533,211.56,211.47,0.03620773]
[1756474478056,67.1642,211.56,211.47,0.03620773]
[1756474478262,66.1765,211.52,211.47,0.03620773]
[1756474478663,6.5545,211.5,211.47,0.03620773]
[1756474479067,2.3,211.49,211.47,0.03620773]
[1756474479361,6.5549,211.48,211.47,0.03620773]
[1756474480461,1.0,211.56,211.47,40.51620773]
[1756474480660,66.1229,211.69,211.51,7.6]
[1756474480865,69.4298,211.67,211.51,7.6]
[1756474481062,3.3,211.67,211.51,7.6]
[1756474481263,3.3,211.67,211.52,62.0]
[1756474481460,3.3,211.67,211.57,0.03387074]
[1756474483369,137.76,211.68,211.57,0.03387074]
[1756474483666,137.76,211.68,211.58,4.2527]
[1756474483868,137.76,211.68,211.57,0.03387074]
[1756474484271,141.06,211.68,211.57,0.03387074]
[1756474485262,137.54,211.67,211.57,0.03387074]
[1756474485467,1.0,211.71,211.59,66.1535]
[1756474485667,1.0,211.71,211.62,66.1442]
[1756474485962,1.0,211.71,211.63,4.2517]
[1756474486167,1.0,211.71,211.6,7.6]
[1756474486370,1.0,211.71,211.64,0.03633928]
[1756474486868,3.3,211.87,211.67,7.6]
[1756474487065,5.86,211.86,211.67,7.6]
[1756474487469,18.45323983,211.85,211.58,66.1565]
[1756474487673,18.45323983,211.85,211.56,84.61573983]
[1756474487674,4.25034136,211.79,211.6,7.6]
[1756474487970,141.81,211.78,211.6,7.6]
[1756474488363,4.19,211.77,211.6,7.6]
[1756474488564,18.45323983,211.75,211.53,7.6]
[1756474488774,4.19,211.74,211.53,7.6]
[1756474488967,4.19,211.7,211.53,7.6]
[1756474489169,66.8,211.69,211.53,7.6]
[1756474489575,0.03263785,211.63,211.53,7.6]
[1756474490367,0.03263785,211.63,211.54,4.2537]
[1756474490566,0.03263785,211.63,211.53,7.6]
[1756474490766,0.03263785,211.63,211.58,7.6]
[1756474490974,0.03263785,211.63,211.57,7.6]
[1756474491374,18.45323983,211.8,211.63,7.6]
[1756474491772,4.22,211.81,211.66,4.2513]
[1756474491978,0.82196634,211.88,211.69,73.7226]
[1756474492171,5.22,211.89,211.69,92.17583983]
[1756474492371,5.22,211.89,211.71,4.2502]
[1756474492688,5.22,211.89,211.69,26.05323983]
[1756474492689,4.22,211.86,211.77,0.03455234]
[1756474493174,141.46,211.86,211.77,0.03455234]
[1756474493866,4.19,211.81,211.62,7.6]
[1756474494468,18.45323983,211.82,211.62,7.6]
[1756474494666,4.19,211.81,211.62,7.6]
[1756474494872,4.19,211.81,211.62,11.852]
[1756474495173,0.0315709,211.74,211.62,7.6]
[1756474495775,0.0315709,211.74,211.58,2.21547]
[1756474496171,4.19,211.76,211.58,2.21547]
[1756474496467,0.03484832,211.68,211.59,7.6]
[1756474497272,0.03484832,211.68,211.62,4.2521]
[1756474497474,0.03484832,211.68,211.59,7.6]
[1756474499378,0.03484832,211.68,211.6,4.2523]
[1756474499580,0.03484832,211.68,211.59,7.6]
[1756474499975,0.03484832,211.68,211.64,4.2517]
[1756474500172,0.03484832,211.68,211.58,9.81547]
[1756474500376,4.22484832,211.68,211.58,2.21547]
[1756474501785,0.03484832,211.68,211.58,9.81547]
[1756474502279,0.03484832,211.68,211.59,66.1536]
[1756474502480,0.03484832,211.68,211.6,66.1502]
[1756474502680,0.03484832,211.68,211.64,66.1382]
[1756474502876,4.19,211.82,211.65,73.7322]
[1756474503078,4.19,211.82,211.69,66.1227]
[1756474503279,4.19,211.87,211.74,66.106]
[1756474503479,4.19,211.87,211.73,7.6]
[1756474504077,4.19,211.87,211.73,73.7096]
[1756474504285,4.19,211.87,211.78,0.03544652]
[1756474506279,317.52,211.91,211.78,0.03544652]
[1756474507581,4.16,211.88,211.78,0.03544652]
[1756474508677,0.82165583,211.9,211.59,7.34]
[1756474508678,4.12,211.85,211.59,7.34]
[1756474508882,18.45323983,211.81,211.59,7.34]
[1756474509186,18.45323983,211.81,211.58,2.21547]
[1756474509187,4.12,211.75,211.58,2.21547]
[1756474509480,4.12,211.73,211.58,2.21547]
[1756474509681,4.12,211.7,211.58,2.21547]
[1756474509886,4.12,211.65,211.58,2.21547]
[1756474510082,137.1,211.64,211.47,7.34]
[1756474510275,1.91,211.63,211.42,62.0]
[1756474510479,1.91,211.58,211.4,73.552]
[1756474510678,1.94314153,211.58,211.4,73.552]
[1756474510876,8.62,211.57,211.43,66.203]
[1756474511082,8.62,211.57,211.4,7.34]
[1756474511277,0.03006923,211.52,211.4,7.34]
[1756474511685,0.03006923,211.52,211.43,7.34]
[1756474512182,1.91,211.58,211.34,84.68473983]
[1756474512384,0.03202031,211.5,211.35,7.34]
[1756474512887,1.91,211.52,211.37,7.34]
[1756474513088,0.03515704,211.45,211.37,7.34]
[1756474513284,0.03515704,211.45,211.34,4.2576]
[1756474513589,0.03515704,211.45,211.38,4.2568]
[1756474514689,0.03515704,211.45,211.35,70.4858]
[1756474514889,0.03515704,211.45,211.35,66.2284]
[1756474515086,0.03515704,211.45,211.34,4.2577]
[1756474515391,8.14,211.44,211.31,66.2412]
[1756474515587,0.03515704,211.45,211.32,4.2581]
[1756474515891,16.88,211.47,211.32,77.8362]
[1756474516084,1.91,211.52,211.36,11.5971]
[1756474516283,1.91,211.52,211.42,66.2056]
[1756474516484,1.94,211.57,211.45,66.1964]
[1756474516684,317.42,211.61,211.49,66.1848]
[1756474516986,317.42,211.61,211.45,7.34]
[1756474517186,1.94,211.6,211.41,66.2082]
[1756474517488,1.94,211.6,211.43,4.2559]
[1756474517684,1.94,211.6,211.48,0.03158818]
[1756474517886,139.12,211.6,211.49,4.2547]
[1756474518189,139.12,211.6,211.48,0.03158818]
[1756474518389,139.12,211.6,211.45,7.34]
[1756474518584,18.45323983,211.58,211.52,0.03000335]
[1756474518785,1.93,211.57,211.52,0.03000335]
[1756474518988,1.93,211.58,211.45,66.1961]
[1756474519187,137.2,211.57,211.47,66.1911]
[1756474519384,317.42,211.61,211.52,0.03177101]
[1756474519891,1.93,211.6,211.52,0.03177101]
[1756474521193,317.42,211.61,211.52,0.03177101]
[1756474521987,317.42,211.61,211.53,66.1718]
[1756474522390,317.42,211.61,211.52,0.03177101]
[1756474522589,1.93,211.6,211.52,0.03177101]
[1756474522789,1.93,211.6,211.37,84.67513983]
[1756474522991,18.48400636,211.59,211.39,66.2155]
[1756474523290,18.48400636,211.59,211.41,4.2562]
[1756474523291,1.9,211.58,211.41,4.2562]
[1756474523691,1.9,211.58,211.38,66.2193]
[1756474523995,18.45323983,211.53,211.39,66.216]
[1756474524297,0.03209685,211.5,211.4,4.2564]
[1756474525191,0.03209685,211.5,211.42,66.2066]
[1756474525398,0.03209685,211.5,211.41,7.34]
[1756474525697,0.03209685,211.5,211.49,7.34]
[1756474525895,317.42,211.61,211.49,7.34]
[1756474526200,137.2,211.6,211.5,4.2545]
[1756474526493,137.2,211.6,211.49,7.34]
[1756474526700,1.93,211.59,211.47,4.255]
[1756474526994,139.13,211.59,211.49,66.1847]
[1756474527196,139.13,211.59,211.51,0.03600022]
[1756474527789,1.93,211.59,211.51,0.03600022]
[1756474527989,137.2,211.58,211.51,0.03600022]
[1756474528604,1.93,211.54,211.51,0.03600022]
[1756474528806,4.2535,211.55,211.51,0.03600022]
[1756474529001,1.93,211.54,211.51,0.03600022]
[1756474529401,18.45323983,211.57,211.51,0.03600022]
[1756474529402,4.254,211.53,211.51,0.03600022]
[1756474529608,18.45323983,211.52,211.3,11.26718503]
[1756474529805,0.03589703,211.55,211.3,7.34]
[1756474529806,1.93,211.45,211.3,7.34]
[1756474530007,106.76,211.44,211.3,7.34]
[1756474530209,319.63,211.45,211.3,7.34]
[1756474530506,1.93,211.4,211.2,7.34]
[1756474530703,1.93,211.34,211.15,104.44455374]
[1756474530908,18.45323983,211.31,211.15,104.44455374]
[1756474531105,72.84,211.3,211.2,4.2604]
[1756474531310,74.77,211.3,211.15,104.44455374]
[1756474531511,0.03025053,211.27,211.15,104.44455374]
[1756474531808,0.03025053,211.27,211.18,7.34]
[1756474533307,13.2,211.36,211.22,7.34]
[1756474533515,1.96,211.35,211.16,7.34]
[1756474533716,1.96,211.35,211.2,0.03043542]
[1756474534007,76.5,211.34,211.22,7.34]
[1756474534415,137.3,211.38,211.27,66.2524]
[1756474534614,137.3,211.38,211.27,7.34]
[1756474534908,137.3,211.38,211.29,4.2585]
[1756474535107,139.27,211.38,211.2,73.6133]
[1756474535313,139.27,211.38,211.31,0.03012449]
[1756474535513,3.5131479,211.37,211.31,0.03012449]
[1756474535711,139.27,211.38,211.31,0.03012449]
[1756474536415,137.28,211.38,211.31,0.03012449]
[1756474536612,1.95,211.33,211.17,7.62]
[1756474536818,1.95,211.33,211.15,104.44455374]
[1756474537109,137.28,211.38,211.16,4.5406614]
[1756474537110,66.2688,211.22,211.16,4.5406614]
[1756474537311,66.2688,211.22,211.03,7.62]
[1756474537312,66.2781,211.19,211.03,7.62]
[1756474537516,133.953,211.21,211.03,7.62]
[1756474537517,67.68,211.21,211.03,7.62]
[1756474537711,413.50293735,211.23,211.03,7.62]
[1756474538016,0.0343009,211.14,211.04,66.3238]
[1756474538313,0.0343009,211.14,211.06,66.3169]
[1756474538521,0.0343009,211.14,211.07,66.3145]
[1756474539013,0.0343009,211.14,211.08,66.3116]
[1756474539414,317.88,211.23,211.13,66.2951]
[1756474539610,317.88,211.23,211.12,7.62]
[1756474539809,317.88,211.23,211.06,66.3179]
[1756474540010,317.88,211.23,211.05,7.62]
[1756474540415,137.52,211.22,211.1,66.3049]
[1756474540715,137.52,211.22,211.12,0.03153464]
[1756474540919,317.88,211.23,211.13,66.2944]
[1756474541211,455.36,211.23,211.13,66.2944]
[1756474541410,137.46,211.27,211.16,70.5474]
[1756474541620,0.03,211.32,211.19,66.2772]
[1756474541915,137.42,211.31,211.23,4.2597]
[1756474542120,137.42,211.31,211.23,70.55792295]
[1756474542419,137.42,211.31,211.23,0.03352295]
[1756474542623,318.0,211.35,211.23,0.03352295]
[1756474542624,318.0,211.35,211.23,66.29672295]
[1756474542815,0.03,211.39,211.28,66.2486]
[1756474543009,27.16,211.38,211.29,66.2457]
[1756474543210,0.03,211.45,211.32,66.2367]
[1756474543416,137.48,211.44,211.31,7.62]
[1756474543611,137.48,211.44,211.31,7.65186582]
[1756474543814,137.48,211.44,211.26,66.255]
[1756474544014,0.03,211.41,211.24,7.62]
[1756474544219,0.03,211.41,211.35,0.03376403]
[1756474544418,0.03,211.41,211.24,11.8796]
[1756474544419,0.03,211.36,211.17,7.62]
[1756474544622,137.48,211.35,211.19,66.2774]
[1756474544817,29.38623735,211.36,211.23,66.2646]
[1756474545025,137.44,211.35,211.23,66.2646]
[1756474545614,0.03365358,211.31,211.27,66.2521]
[1756474545817,0.03365358,211.31,211.25,66.2586]
[1756474545818,34.36,211.41,211.29,73.8639]
[1756474546115,34.36,211.41,211.29,7.62]
[1756474546312,66.2172,211.39,211.22,7.62]
[1756474546516,66.2277,211.35,211.17,137.38]
[1756474546716,0.07,211.36,211.2,73.8941]
[1756474546916,0.07,211.36,211.22,66.2674]
[1756474547214,0.07,211.42,211.27,66.2517]
[1756474547416,0.07,211.5,211.36,73.8434]
[1756474547615,0.07,211.5,211.36,7.62]
[1756474548018,0.07,211.5,211.41,0.03600347]
[1756474548227,4.2549,211.48,211.41,0.03600347]
[1756474548420,0.07,211.58,211.41,0.03600347]
[1756474548719,137.70846112,211.61,211.41,0.03600347]
[1756474548720,4.2541,211.52,211.41,0.03600347]
[1756474549023,4.2541,211.52,211.37,7.62]
[1756474549218,4.2541,211.52,211.44,0.03325331]
[1756474549618,0.07,211.54,211.44,0.03325331]
[1756474549826,66.1745,211.52,211.44,0.03325331]
[1756474550021,4.3243,211.51,211.44,0.03325331]
[1756474550224,0.07,211.51,211.44,0.03325331]
[1756474550524,0.07,211.47,211.44,0.03325331]
[1756474550723,0.03,211.45,211.3,7.62]
[1756474551824,137.96,211.44,211.3,7.62]
[1756474552022,0.0300395,211.4,211.24,7.62]
[1756474552218,0.0300395,211.4,211.26,66.255]
[1756474552426,137.96,211.44,211.3,66.2428]
[1756474552621,137.96,211.44,211.3,66.2431]
[1756474552821,0.03165666,211.35,211.31,7.62]
[1756474553016,29.35623735,211.51,211.31,7.62]
[1756474553017,29.41623735,211.51,211.31,7.62]
[1756474553223,19.98,211.5,211.31,73.89285369]
[1756474553422,19.98,211.5,211.31,7.65325369]
[1756474553616,19.98,211.5,211.31,7.62]
[1756474554022,0.06,211.49,211.31,7.62]
[1756474554526,0.06,211.49,211.38,0.03107585]
[1756474555328,18.39027157,211.49,211.38,0.03107585]
[1756474557720,137.5,211.48,211.38,0.03107585]
[1756474558127,4.2553,211.46,211.38,0.03107585]
[1756474558331,66.2642,211.43,211.38,0.03107585]
[1756474558530,66.2217,211.37,211.25,7.62]
[1756474558728,66.2318,211.34,211.19,7.62]
[1756474558930,0.06,211.35,211.19,7.62]
[1756474559332,137.48,211.34,211.19,7.62]
[1756474559528,155.81027157,211.34,211.19,7.62]
[1756474559729,155.81027157,211.34,211.2,4.2605]
[1756474559929,0.03200675,211.29,211.2,4.2605]
[1756474560326,0.03200675,211.29,211.2,66.2733]
[1756474560532,60.36,211.37,211.24,7.62]
[1756474560835,137.5,211.42,211.31,66.2398]
[1756474561028,137.5,211.42,211.31,66.2404]
[1756474561229,18.33027157,211.52,211.36,7.62]
[1756474561428,336.29027157,211.57,211.41,7.62]
[1756474561729,0.1,211.55,211.41,7.62]
[1756474561931,0.1,211.51,211.47,0.03386813]
[1756474562131,18.43027157,211.52,211.47,0.03386813]
[1756474562331,18.33027157,211.52,211.47,0.03386813]
[1756474562532,137.58,211.53,211.47,0.03386813]
[1756474562935,137.6,211.56,211.47,0.03386813]
[1756474563528,66.1653,211.55,211.47,0.03386813]
[1756474563725,155.93027157,211.56,211.47,0.03386813]
[1756474563930,66.1717,211.53,211.47,0.03386813]
[1756474564134,0.1,211.51,211.47,0.03386813]